bitfinex-derivatives/quotes_SOLF0:USTF0_20250923
["timestamp","ask_amount","ask_price","bid_price","bid_amount"]
[1758643962334,24.16,218.11,218.05,4.1249]
[1758643962534,26.20177717,218.11,218.01,2.04177717]
[1758643962834,10.6873795,218.1,218.01,2.04177717]
[1758643963134,7.47,218.08,218.0,7.1]
[1758643963426,3.21719038,218.07,217.92,64.2051]
[1758643963629,7.47,218.06,217.97,2.04177717]
[1758643963831,7.47,218.06,217.98,7.1]
[1758643964229,11.5946,218.07,217.98,7.1]
[1758643964435,3.21904523,218.06,217.98,9.14177717]
[1758643964733,7.47,218.07,217.98,9.14177717]
[1758643964929,4.125,218.06,217.99,4.126]
[1758643966535,7.47,218.04,217.98,9.14177717]
[1758643966738,7.47,218.04,217.98,7.1]
[1758643967233,7.47,218.04,218.0,4.1259]
[1758643967630,6.16647717,218.07,218.01,7.1]
[1758643968138,108.94647717,218.07,218.01,7.1]
[1758643968839,108.94647717,218.07,218.01,11.2256]
[1758643969432,108.94647717,218.07,217.97,2.04177717]
[1758643969630,108.94647717,218.07,217.96,7.1]
[1758643969631,14.81965432,218.06,217.96,7.1]
[1758643969938,11.5949,218.06,217.97,2.04177717]
[1758643970141,121.33,218.06,218.0,2.04177717]
[1758643970335,121.33,218.06,217.95,2.04177717]
[1758643970336,7.47,218.04,217.95,2.04177717]
[1758643970542,7.47,218.04,217.96,2.04177717]
[1758643971838,7.47,218.04,217.98,4.1262]
[1758643972946,11.5953,218.04,217.98,4.1262]
[1758643973246,3.22913808,218.03,217.94,9.14177717]
[1758643973447,3.22914689,218.02,217.94,9.14177717]
[1758643973647,7.47,218.04,217.94,9.14177717]
[1758643973847,4.1259,218.01,217.95,4.1267]
[1758643974542,17.57179761,218.01,217.95,4.1267]
[1758643975241,4.1261,218.0,217.94,9.14177717]
[1758643975947,4.1261,218.0,217.94,13.26867717]
[1758643976342,7.63,218.0,217.94,4.1269]
[1758643976549,7.63,218.0,217.92,6.16917717]
[1758643977746,4.1264,217.98,217.92,6.16917717]
[1758643977947,11.7564,217.98,217.92,4.1274]
[1758643978146,7.63,217.98,217.92,4.1274]
[1758643978342,7.63,217.98,217.91,9.06177717]
[1758643979746,7.63,217.98,217.94,4.127]
[1758643980144,35.6,218.0,217.94,4.127]
[1758643980342,3.25798238,217.99,217.94,4.127]
[1758643980650,35.6,218.0,217.94,4.127]
[1758643980840,3.25837782,217.99,217.94,4.127]
[1758643981048,7.63,218.0,217.96,4.1267]
[1758643981251,127.30589761,218.01,217.96,4.1267]
[1758643981445,7.63,218.0,217.96,4.1267]
[1758643981647,127.30589761,218.01,217.96,4.1267]
[1758643981851,127.30589761,218.01,217.93,9.06177717]
[1758643981852,3.25731191,218.0,217.98,7.02]
[1758643982048,94.91,218.04,217.97,9.06177717]
[1758643982241,3.25652573,218.03,217.97,9.06177717]
[1758643982551,7.63,218.04,217.97,9.06177717]
[1758643982750,3.25684766,218.03,217.97,9.06177717]
[1758643982950,7.63,218.04,217.97,9.06177717]
[1758643983253,3.25684637,218.03,217.99,7.02]
[1758643983454,49.02,218.08,218.01,2.04177717]
[1758643983654,3.25678018,218.07,218.01,2.04177717]
[1758643983854,10.88678018,218.06,218.01,9.06177717]
[1758643984154,3.25678018,218.05,218.01,9.06177717]
[1758643984755,3.25678018,218.05,218.01,13.18747717]
[1758643985049,113.86,218.08,218.03,7.02]
[1758643985248,3.25790552,218.07,218.01,9.06177717]
[1758643985443,3.25790552,218.06,218.02,7.02]
[1758643985649,113.86,218.08,218.01,9.06177717]
[1758643985855,3.25836233,218.07,218.03,4.1254]
[1758643986052,3.25836233,218.06,218.03,11.1454]
[1758643986354,121.49,218.08,218.03,11.1454]
[1758643986558,3.25985928,218.07,218.04,6.16677717]
[1758643986750,7.63,218.08,218.04,6.16677717]
[1758643986751,7.63,218.08,218.05,7.02]
[1758643986950,3.26007761,218.07,218.05,7.02]
[1758643987246,7.63,218.08,218.05,7.02]
[1758643987451,3.26162238,218.07,218.05,7.02]
[1758643987649,73.47,218.1,218.05,7.02]
[1758643987854,3.26130484,218.09,218.05,7.02]
[1758643988052,3.26130484,218.08,218.04,6.16677717]
[1758643988353,73.47,218.1,218.05,7.02]
[1758643988354,3.26130484,218.07,218.05,7.02]
[1758643988553,73.47,218.1,218.05,7.02]
[1758643988855,3.26176054,218.09,218.05,11.1449]
[1758643989053,3.26176054,218.08,218.05,11.1449]
[1758643989349,3.26176054,218.07,218.05,4.1249]
[1758643989557,3.26176054,218.06,218.05,4.1249]
[1758643989947,3.26176054,218.06,218.01,9.06177717]
[1758643990150,21.43515971,218.09,218.03,2.04177717]
[1758643990360,3.2617641,218.08,218.01,2.04177717]
[1758643990552,3.2617641,218.07,218.01,2.04177717]
[1758643990856,7.63,218.05,218.01,2.04177717]
[1758643991053,10.6018302,218.04,218.01,2.04177717]
[1758643991357,4.1249,218.06,218.01,2.04177717]
[1758643991552,10.60222486,218.05,217.98,2.04177717]
[1758643991752,3.26222486,218.04,217.98,2.04177717]
[1758643992055,10.60222486,218.03,217.99,7.2]
[1758643992251,10.60222486,218.02,217.98,2.04177717]
[1758643992558,3.26222486,218.01,217.96,2.04177717]
[1758643992750,11.4657,218.02,217.96,2.04177717]
[1758643992955,7.34,218.0,217.96,2.04177717]
[1758643994057,7.34,218.0,217.93,2.04177717]
[1758643994251,3.26206038,217.99,217.93,2.04177717]
[1758643994451,7.34,218.0,217.93,2.04177717]
[1758643994748,3.2623759,217.99,217.93,2.04177717]
[1758643994953,3.26227796,217.98,217.93,2.04177717]
[1758643995255,7.34,218.0,217.93,2.04177717]
[1758643995451,3.26237375,217.99,217.93,2.04177717]
[1758643995657,2.04177717,218.03,217.93,2.04177717]
[1758643995658,7.34,217.97,217.93,2.04177717]
[1758643996360,7.34,217.97,217.93,9.24177717]
[1758643996960,4.1263,217.99,217.93,2.04177717]
[1758643997158,7.34,217.97,217.93,2.04177717]
[1758643997352,4.1263,217.99,217.93,2.04177717]
[1758643997553,10.6013603,217.98,217.93,2.04177717]
[1758643997865,7.34,217.99,217.93,6.16887717]
[1758643998054,10.60136092,217.98,217.93,13.36887717]
[1758643998364,7.34,218.0,217.93,13.36887717]
[1758643998552,3.26076241,217.99,217.93,13.36887717]
[1758643998754,10.60076241,217.98,217.93,13.36887717]
[1758643998951,7.34,217.98,217.94,7.2]
[1758643999559,7.34,217.98,217.94,11.3269]
[1758644001252,3.25982074,217.97,217.91,4.1275]
[1758644001455,7.34,217.95,217.91,11.3275]
[1758644002263,7.34,217.99,217.92,7.2]
[1758644002463,4.40612761,217.98,217.92,7.2]
[1758644002665,10.5992098,217.97,217.92,7.2]
[1758644002960,3.2592098,217.96,217.92,13.36907717]
[1758644003165,7.35,218.01,217.93,7.59]
[1758644003462,118.24542945,218.0,217.93,7.59]
[1758644003665,3.25857702,217.99,217.93,7.59]
[1758644003862,10.60857702,217.99,217.95,11.7167]
[1758644004059,3.25857702,217.98,217.95,11.7167]
[1758644004567,3.25857702,217.97,217.95,4.1267]
[1758644006369,3.25857702,217.97,217.93,11.7172]
[1758644006665,3.25857702,217.97,217.94,7.59]
[1758644007066,10.60857702,217.97,217.91,6.16937717]
[1758644007364,4.1263,217.98,217.91,6.16937717]
[1758644007365,7.35,217.95,217.91,13.75937717]
[1758644007966,7.35,217.95,217.92,7.59]
[1758644008466,7.35,217.97,217.93,4.1273]
[1758644008767,3.25742401,217.96,217.93,11.7173]
[1758644008966,7.35,217.97,217.93,11.7173]
[1758644009165,3.25716814,217.96,217.93,11.7173]
[1758644009360,7.35,217.97,217.93,11.7173]
[1758644009556,3.25688289,217.96,217.93,4.1273]
[1758644009862,121.17,218.0,217.93,11.7173]
[1758644010061,4.40452259,217.99,217.93,11.7173]
[1758644010265,10.60760478,217.98,217.93,11.7173]
[1758644010465,3.25760478,217.97,217.94,2.04177717]
[1758644010670,35.5,218.0,217.94,9.63177717]
[1758644010871,3.25764831,217.99,217.95,7.59]
[1758644011062,3.25764831,217.98,217.95,7.59]
[1758644011263,33.22,218.01,217.94,9.63177717]
[1758644011460,3.25785543,218.0,217.94,9.63177717]
[1758644011660,3.25785543,217.99,217.95,7.59]
[1758644011871,7.35,218.02,217.95,7.59]
[1758644012072,3.25854436,218.01,217.95,7.59]
[1758644012270,3.25854436,218.0,217.94,2.04177717]
[1758644012476,3.25854436,217.99,217.97,4.1263]
[1758644012668,7.35,218.0,217.94,7.59]
[1758644012875,3.25865854,217.99,217.93,10.78144747]
[1758644013176,3.25865854,217.98,217.94,7.59]
[1758644013477,7.35,218.0,217.93,10.78144747]
[1758644013668,3.2586979,217.99,217.93,10.78144747]
[1758644013870,3.2586979,217.98,217.96,7.59]
[1758644014070,7.35,218.0,217.96,7.59]
[1758644014269,3.25879115,217.99,217.96,7.59]
[1758644014575,3.25879115,217.98,217.96,7.59]
[1758644014777,7.35,218.0,217.96,7.59]
[1758644014975,3.25912623,217.99,217.96,7.59]
[1758644015179,3.25912623,217.98,217.96,7.59]
[1758644015380,7.35,218.0,217.96,7.59]
[1758644015674,3.25993486,217.99,217.96,7.59]
[1758644015874,3.25993486,217.98,217.96,7.59]
[1758644016076,7.35,218.0,217.94,7.59]
[1758644016376,3.25922945,217.99,217.9,7.59]
[1758644016574,7.35,218.0,217.92,3.19144747]
[1758644016772,3.25979543,217.99,217.93,7.59]
[1758644016973,3.2599285,217.98,217.92,3.19144747]
[1758644017175,7.35,218.0,217.93,7.59]
[1758644017375,3.26044155,217.99,217.93,7.59]
[1758644017673,3.26044155,217.98,217.93,7.59]
[1758644017978,7.35,218.0,217.95,11.7168]
[1758644018174,3.26062273,217.99,217.95,11.7168]
[1758644018374,3.26062273,217.98,217.95,11.7168]
[1758644018680,7.35,218.0,217.95,4.1268]
[1758644018878,10.61100021,217.99,217.95,11.7168]
[1758644019076,3.26100021,217.98,217.95,11.7168]
[1758644019378,7.35,217.99,217.95,11.7168]
[1758644019673,3.26098222,217.98,217.95,4.1268]
[1758644019978,7.35,217.99,217.96,7.59]
[1758644020176,3.26111267,217.98,217.96,7.59]
[1758644020378,7.35,217.99,217.96,7.59]
[1758644020578,3.26095942,217.98,217.96,7.59]
[1758644020779,7.35,217.99,217.96,7.59]
[1758644020978,3.26082509,217.98,217.96,7.59]
[1758644021179,7.35,217.99,217.96,7.59]
[1758644021377,3.26076645,217.98,217.97,7.59]
[1758644021884,121.13,218.03,217.97,7.59]
[1758644022183,20.78307787,218.09,217.98,7.59]
[1758644022377,77.02797121,218.08,217.98,7.59]
[1758644022579,4.40797121,218.07,218.01,7.59]
[1758644022775,3.2613987,218.06,218.0,3.19144747]
[1758644022983,3.2613987,218.05,218.0,3.19144747]
[1758644023280,20.78307787,218.09,218.01,7.59]
[1758644023476,4.40828499,218.08,218.04,4.1251]
[1758644023683,3.26185462,218.07,218.05,7.59]
[1758644023878,3.26185462,218.06,218.05,7.59]
[1758644025980,3.26185462,218.06,218.04,4.1251]
[1758644026182,11.4739,218.11,218.05,7.59]
[1758644026485,7.35,218.09,218.05,7.59]
[1758644026687,3.25949057,218.08,218.04,4.1251]
[1758644026987,3.25949057,218.07,218.05,7.59]
[1758644027286,3.25949057,218.06,218.05,7.59]
[1758644027591,13.44175336,218.1,218.05,4.1249]
[1758644027887,11.4735,218.13,218.06,7.59]
[1758644027888,3.25806804,218.09,218.06,7.59]
[1758644028078,125.2335,218.13,218.06,7.59]
[1758644028276,4.4039362,218.12,218.06,7.59]
[1758644028480,11.7539362,218.11,218.06,7.59]
[1758644028682,3.25762856,218.1,218.06,7.59]
[1758644029088,3.25762856,218.1,218.07,4.1246]
[1758644029282,3.25762856,218.09,218.08,7.59]
[1758644030288,121.11,218.13,218.09,7.59]
[1758644030578,4.40235408,218.12,218.09,7.59]
[1758644030782,3.25610159,218.11,218.09,7.59]
[1758644030987,121.11,218.13,218.09,7.59]
[1758644031187,3.25618583,218.12,218.09,7.59]
[1758644031386,3.25618583,218.11,218.05,7.59]
[1758644031592,7.35,218.13,218.05,7.59]
[1758644031780,3.25483691,218.12,218.09,4.1241]
[1758644031988,13.97675742,218.16,218.1,7.59]
[1758644032188,3.25499836,218.15,218.08,7.59]
[1758644032488,467.91,218.17,218.08,7.59]
[1758644032688,3.25352304,218.16,218.09,7.59]
[1758644032886,3.25352304,218.15,218.09,7.59]
[1758644033087,460.56,218.17,218.09,7.59]
[1758644033286,3.25207123,218.16,218.09,7.59]
[1758644033492,460.56,218.17,218.09,7.59]
[1758644033694,3.25200764,218.16,218.12,7.69]
[1758644033892,7.34,218.16,218.07,3.19144747]
[1758644034088,7.34,218.16,218.08,7.69]
[1758644034285,4.1225,218.18,218.11,11.8137]
[1758644034484,10.59060255,218.17,218.11,7.69]
[1758644034689,7.34,218.15,218.07,3.19144747]
[1758644034990,7.34,218.18,218.08,7.69]
[1758644035189,3.25089278,218.17,218.08,7.69]
[1758644035495,7.34,218.18,218.08,7.69]
[1758644035786,7.37236238,218.17,218.09,4.1242]
[1758644035991,4.1229,218.17,218.1,7.69]
[1758644037295,7.34,218.18,218.11,4.1237]
[1758644037896,4.1227,218.17,218.1,7.69]
[1758644041005,7.34,218.16,218.06,7.69]
[1758644041207,3.24756865,218.15,218.06,7.69]
[1758644041506,7.34,218.14,218.06,7.69]
[1758644041706,4.124,218.11,218.06,7.69]
[1758644041905,11.464,218.11,218.04,7.69]
[1758644042106,7.34,218.14,218.04,7.69]
[1758644043310,4.1238,218.12,218.04,11.815]
[1758644043709,7.34,218.14,218.04,11.815]
[1758644044004,11.4642,218.1,218.04,7.69]
[1758644045711,90.38,218.12,218.04,7.69]
[1758644046110,94.5038,218.12,218.04,11.815]
[1758644046300,90.38,218.12,218.04,11.815]
[1758644046506,7.34,218.11,218.04,11.815]
[1758644047507,11.464,218.11,218.05,4.1249]
[1758644047709,70.1,218.14,218.04,7.69]
[1758644048515,70.1,218.14,218.07,4.1244]
[1758644048709,7.34,218.15,218.07,7.69]
[1758644049601,7.34,218.15,218.08,7.69]
[1758644050415,7.34,218.17,218.08,7.69]
[1758644050713,7.34,218.17,218.09,7.69]
[1758644050907,51.84,218.18,218.12,4.1235]
[1758644051108,7.34,218.16,218.12,4.1235]
[1758644051312,44.5,218.18,218.13,7.17]
[1758644051501,44.5,218.18,218.12,4.1235]
[1758644051702,44.5,218.18,218.12,11.2935]
[1758644051911,51.97,218.18,218.1,4.124]
[1758644052406,51.97,218.18,218.08,7.17]
[1758644052606,51.97,218.18,218.09,3.19144747]
[1758644052813,51.97,218.18,218.1,7.17]
[1758644053208,51.97,218.18,218.14,11.2933]
[1758644053417,44.5,218.18,218.11,7.17]
[1758644053615,44.5,218.18,218.16,7.17]
[1758644053909,13.51676821,218.22,218.12,3.19144747]
[1758644054108,3.24922597,218.21,218.13,7.17]
[1758644054311,7.47,218.25,218.16,3.19144747]
[1758644054520,7.47,218.25,218.17,7.17]
[1758644054915,13.87979246,218.28,218.16,67.32474747]
[1758644055112,11.86574922,218.27,218.22,4.1218]
[1758644055312,113.6,218.3,218.21,7.17]
[1758644055510,3.24916775,218.29,218.21,7.17]
[1758644055715,3.24916775,218.28,218.21,7.17]
[1758644056015,113.6,218.3,218.21,7.17]
[1758644056217,3.24947405,218.29,218.21,7.17]
[1758644056417,69.57201485,218.36,218.22,64.117]
[1758644056418,3.24947405,218.28,218.22,64.117]
[1758644056615,7.47,218.35,218.25,7.17]
[1758644056821,3.24849751,218.34,218.25,7.17]
[1758644057019,7.47,218.35,218.25,7.17]
[1758644057210,3.24893531,218.34,218.25,7.17]
[1758644057410,7.47,218.35,218.25,7.17]
[1758644058124,7.47,218.35,218.25,10.36144747]
[1758644058519,7.47,218.35,218.25,3.19144747]
[1758644058816,7.47,218.35,218.26,7.17]
[1758644059024,7.47,218.35,218.26,11.291]
[1758644060321,7.47,218.39,218.3,3.19144747]
[1758644060521,4.38420228,218.38,218.3,10.36144747]
[1758644060718,1.14495587,218.37,218.3,10.36144747]
[1758644060921,7.47,218.39,218.3,10.36144747]
[1758644061119,4.38419474,218.38,218.3,14.48164747]
[1758644061315,7.47,218.39,218.3,14.48164747]
[1758644061610,4.38177249,218.38,218.3,14.48164747]
[1758644061814,4.1188,218.38,218.3,7.17]
[1758644062117,1.14492904,218.37,218.3,7.17]
[1758644062319,4.1188,218.38,218.3,7.17]
[1758644062715,4.1192,218.36,218.3,7.17]
[1758644063015,7.47,218.35,218.28,3.19144747]
[1758644064122,71.5498,218.35,218.22,3.19144747]
[1758644064324,71.1755,218.33,218.21,7.13]
[1758644064622,7.09,218.31,218.21,7.13]
[1758644064815,1.1452748,218.3,218.21,7.13]
[1758644065017,7.09,218.31,218.21,7.13]
[1758644065320,78.3,218.34,218.2,64.1228]
[1758644065620,4.37977115,218.33,218.21,7.13]
[1758644065813,78.3,218.34,218.21,7.13]
[1758644066017,4.37943696,218.33,218.21,7.13]
[1758644066213,1.1451603,218.32,218.25,4.1212]
[1758644066517,78.3,218.34,218.26,7.13]
[1758644066714,4.37914645,218.33,218.26,7.13]
[1758644066911,1.1451603,218.32,218.26,7.13]
[1758644067121,11.2095,218.35,218.27,4.1208]
[1758644067522,4.37821162,218.34,218.26,7.13]
[1758644067722,11.2095,218.35,218.26,7.13]
[1758644068024,4.37814739,218.34,218.26,7.13]
[1758644068223,11.2095,218.35,218.26,7.13]
[1758644068424,4.37802165,218.34,218.26,7.13]
[1758644068628,11.2095,218.35,218.26,11.251]
[1758644068829,4.37802165,218.34,218.26,11.251]
[1758644069128,11.2095,218.35,218.26,11.251]
[1758644069327,4.37826813,218.34,218.26,11.251]
[1758644069627,11.2095,218.35,218.26,11.251]
[1758644069829,7.09,218.35,218.27,4.1206]
[1758644070026,113.5,218.37,218.26,7.13]
[1758644070231,1.14497286,218.36,218.27,7.13]
[1758644070427,113.5,218.37,218.27,7.13]
[1758644070728,113.5,218.37,218.26,67.29594747]
[1758644070729,113.5,218.37,218.31,11.2499]
[1758644071028,113.5,218.37,218.31,7.13]
[1758644071418,120.59,218.37,218.32,7.13]
[1758644071621,7.09,218.36,218.28,7.13]
[1758644072823,7.09,218.36,218.23,7.13]
[1758644073222,7.09,218.34,218.23,7.13]
[1758644073427,113.5,218.37,218.23,7.13]
[1758644073428,7.09,218.31,218.23,7.13]
[1758644073933,4.1204,218.3,218.23,7.13]
[1758644075327,4.1207,218.28,218.2,4.1221]
[1758644077535,2.03754549,218.29,218.21,4.1218]
[1758644077735,13.24784549,218.31,218.22,7.13]
[1758644077936,1.14530064,218.3,218.22,7.13]
[1758644078130,13.24784549,218.31,218.22,7.13]
[1758644079037,13.24784549,218.31,218.22,11.2516]
[1758644080238,7.09,218.31,218.25,7.13]
[1758644081840,7.09,218.31,218.25,11.2511]
[1758644082533,7.09,218.31,218.26,4.1209]
[1758644083134,9.12754549,218.35,218.28,4.1206]
[1758644083328,1.1451532,218.34,218.28,4.1206]
[1758644083541,7.09,218.34,218.25,9.16754549]
[1758644083942,7.09,218.32,218.25,2.03754549]
[1758644084238,7.09,218.32,218.23,2.03754549]
[1758644085235,7.09,218.32,218.24,7.13]
[1758644085433,4.1194,218.35,218.26,2.03754549]
[1758644085740,4.37463797,218.34,218.27,7.13]
[1758644085934,7.09,218.36,218.27,7.13]
[1758644086239,4.37458606,218.35,218.27,7.13]
[1758644086434,7.09,218.36,218.27,7.13]
[1758644086632,4.37531847,218.35,218.27,7.13]
[1758644086833,1.14511771,218.34,218.28,4.1206]
[1758644087029,11.2093,218.36,218.28,6.15814549]
[1758644087235,4.37538077,218.35,218.28,6.15814549]
[1758644087434,1.14511762,218.34,218.28,2.03754549]
[1758644087640,7.09,218.39,218.31,7.13]
[1758644087840,4.37664377,218.38,218.31,7.13]
[1758644088043,4.37664377,218.37,218.31,7.13]
[1758644088240,7.09,218.39,218.31,7.13]
[1758644088441,4.37806592,218.38,218.31,9.16754549]
[1758644088643,7.09,218.36,218.32,4.1198]
[1758644089041,7.09,218.38,218.3,2.03754549]
[1758644089238,4.37898348,218.37,218.3,2.03754549]
[1758644089440,1.14496976,218.36,218.3,2.03754549]
[1758644089639,7.09,218.38,218.3,2.03754549]
[1758644089945,4.38037429,218.37,218.3,2.03754549]
[1758644090244,7.09,218.38,218.29,2.03754549]
[1758644090447,4.38263246,218.37,218.29,2.03754549]
[1758644090639,3.23766269,218.36,218.31,11.2499]
[1758644091338,7.09,218.38,218.32,11.2497]
[1758644091544,104.08326306,218.42,218.34,7.13]
[1758644091545,111.17326306,218.42,218.34,7.13]
[1758644091745,4.38506748,218.41,218.34,7.13]
[1758644091938,4.38506748,218.4,218.34,7.13]
[1758644092137,11.47506748,218.39,218.34,11.2494]
[1758644092338,4.38506748,218.38,218.34,11.2494]
[1758644092539,3.24017761,218.37,218.34,11.2494]
[1758644092740,7.09,218.39,218.34,7.13]
[1758644092941,4.38698009,218.38,218.34,7.13]
[1758644093142,3.24209022,218.37,218.34,7.13]
[1758644093338,3.24441597,218.36,218.34,7.13]
[1758644093546,7.09,218.39,218.34,7.13]
[1758644093740,4.38943538,218.38,218.34,7.13]
[1758644093936,4.38943538,218.37,218.34,7.13]
[1758644094141,3.24454551,218.36,218.34,7.13]
[1758644094342,7.09,218.39,218.33,9.54754549]
[1758644094549,4.39135992,218.38,218.34,7.51]
[1758644094750,4.39135992,218.37,218.34,7.51]
[1758644095048,90.06,218.42,218.36,2.03754549]
[1758644095248,4.39170495,218.41,218.37,7.51]
[1758644095444,4.39170495,218.4,218.37,7.51]
[1758644095647,4.39170495,218.39,218.36,2.03754549]
[1758644095846,90.06,218.42,218.36,9.54754549]
[1758644096054,4.39369234,218.41,218.37,7.51]
[1758644096244,4.39369234,218.4,218.37,7.51]
[1758644096549,4.39369234,218.39,218.37,11.6288]
[1758644096741,3.24899245,218.38,218.37,11.6288]
[1758644097150,3.24899245,218.41,218.37,11.6288]
[1758644097449,4.39369154,218.4,218.37,11.6288]
[1758644097650,4.39369154,218.39,218.37,11.6288]
[1758644097846,4.39369154,218.38,218.37,11.6288]
[1758644099251,3.24899245,218.38,218.37,11.6288]
[1758644099657,3.24899245,218.41,218.37,13.66634549]
[1758644099859,4.39363441,218.4,218.37,13.66634549]
[1758644100055,4.39363441,218.39,218.37,13.66634549]
[1758644100358,4.39363441,218.38,218.37,13.66634549]
[1758644100545,4.39363441,218.38,218.35,6.15684549]
[1758644100751,4.39363441,218.37,218.33,7.51]
[1758644100945,4.39369142,218.36,218.33,7.51]
[1758644101146,3.25584707,218.35,218.33,7.51]
[1758644101359,7.48,218.41,218.33,7.51]
[1758644101562,4.40165393,218.4,218.33,7.51]
[1758644101763,4.40165393,218.39,218.33,11.6296]
[1758644101963,11.88165393,218.38,218.33,11.6296]
[1758644102167,4.40165393,218.37,218.33,11.6296]
[1758644102367,3.25688999,218.36,218.35,7.51]
[1758644103368,101.658,218.42,218.35,7.51]
[1758644103566,4.3989268,218.41,218.35,11.6292]
[1758644103858,4.3989268,218.4,218.37,2.03754549]
[1758644104059,4.3989268,218.39,218.38,7.51]
[1758644104258,4.3989268,218.39,218.38,11.6286]
[1758644104457,346.6,218.43,218.38,11.6286]
[1758644104665,4.39814064,218.42,218.39,7.51]
[1758644104964,4.39814064,218.41,218.39,7.51]
[1758644105161,4.39814064,218.4,218.39,7.51]
[1758644105366,3.25358837,218.4,218.39,7.51]
[1758644106469,71.8376,218.45,218.39,7.51]
[1758644106662,7.48,218.43,218.39,7.51]
[1758644106863,11.8757781,218.42,218.39,7.51]
[1758644107064,3.25122595,218.41,218.39,7.51]
[1758644107260,10.73122595,218.41,218.35,2.03754549]
[1758644107466,60.24,218.45,218.32,7.51]
[1758644107467,7.48,218.39,218.33,2.03754549]
[1758644107762,7.48,218.38,218.34,7.51]
[1758644108161,3.25019072,218.37,218.34,7.51]
[1758644108366,2.03754549,218.43,218.34,7.51]
[1758644108569,11.87487798,218.42,218.34,7.51]
[1758644108769,2.03754549,218.37,218.24,7.51]
[1758644109068,10.73008945,218.36,218.27,9.54754549]
[1758644109258,2.03754549,218.37,218.25,64.1072]
[1758644109259,113.36,218.38,218.3,2.03754549]
[1758644109460,3.25037886,218.37,218.31,7.51]
[1758644109658,9.51754549,218.4,218.27,64.1013]
[1758644109659,3.25037886,218.36,218.34,7.51]
[1758644109858,120.84,218.4,218.34,7.51]
[1758644110066,3.25085325,218.39,218.35,4.1191]
[1758644110266,3.25085325,218.38,218.35,11.6291]
[1758644110459,7.48,218.44,218.37,7.51]
[1758644110658,3.25179764,218.43,218.4,4.1183]
[1758644110966,122.87754549,218.48,218.4,11.6283]
[1758644111169,18.38624818,218.47,218.4,11.6283]
[1758644111468,4.39638651,218.46,218.4,11.6283]
[1758644111663,10.97186005,218.45,218.41,4.118]
[1758644111872,7.72,218.45,218.41,4.118]
[1758644112572,7.72,218.47,218.39,2.03754549]
[1758644112872,7.72,218.43,218.35,2.03754549]
[1758644113168,3.24875432,218.42,218.35,2.03754549]
[1758644113371,7.72,218.43,218.35,2.03754549]
[1758644113571,3.24849042,218.42,218.35,2.03754549]
[1758644113876,12.11306979,218.41,218.35,2.03754549]
[1758644114170,7.72,218.39,218.35,2.03754549]
[1758644114361,4.39306979,218.4,218.32,9.23754549]
[1758644114362,4.1185,218.4,218.32,9.23754549]
[1758644114567,7.72,218.38,218.32,2.03754549]
[1758644114968,7.72,218.38,218.32,9.23754549]
[1758644116173,7.72,218.38,218.33,4.1196]
[1758644116373,7.72,218.38,218.33,11.3196]
[1758644116674,7.72,218.37,218.32,2.03754549]
[1758644116874,35.84,218.41,218.32,2.03754549]
[1758644116875,4.1185,218.4,218.33,7.2]
[1758644117077,3.24786259,218.39,218.33,7.2]
[1758644117268,7.72,218.39,218.3,4.1202]
[1758644117465,9.75754549,218.37,218.28,2.03754549]
[1758644117766,7.72,218.35,218.26,2.03754549]
[1758644117971,3.24756476,218.34,218.26,2.03754549]